fUST/lending_fUST_20240119
["ID","MTS","AMOUNT","RATE_DAILY","PERIOD"]
[312108771,1705632645073,-500.0,0.0003387,2]
[312108772,1705632645083,-500.0,0.0003387,2]
[312108773,1705632645092,-500.0,0.0003387,2]
[312108774,1705632645101,-500.0,0.0003387,2]
[312108775,1705632645110,-500.0,0.0003387,2]
[312108776,1705632645119,-500.0,0.0003387,2]
[312108777,1705632645128,-500.0,0.0003387,2]
[312108778,1705632645137,-600.0,0.0003387,2]
[312108779,1705632645146,-500.0,0.0003387,2]
[312108780,1705632645155,-346.3711987,0.0003387,2]
[312108781,1705632645164,-500.0,0.0003387,2]
[312108782,1705632645173,-681.2,0.00033971,3]
[312108783,1705632645182,-862.56,0.00033971,3]
[312108784,1705632645192,-500.0,0.00033972,3]
[312108785,1705632645201,-500.0,0.00033972,3]
[312108786,1705632645211,-500.0,0.00033972,3]
[312108787,1705632645220,-500.0,0.00033972,3]
[312108788,1705632645229,-500.0,0.00033972,3]
[312108789,1705632645238,-500.0,0.00033972,3]
[312108790,1705632645247,-500.0,0.00033972,3]
[312108791,1705632645256,-500.0,0.00033972,3]
[312108792,1705632645266,-474.60116069,0.00033972,3]
[312108793,1705632645275,-500.0,0.00033972,3]
[312108794,1705632645284,-511.22320999,0.00033972,3]
[312108795,1705632645293,-660.29,0.00033972,3]
[312108796,1705632645302,-500.0,0.00033972,3]
[312108797,1705632645311,-500.0,0.00033972,3]
[312108798,1705632645321,-500.0,0.00033972,3]
[312108799,1705632645330,-500.0,0.00033972,3]
[312108800,1705632645339,-957.96,0.00033972,3]
[312108801,1705632645348,-500.0,0.00033972,3]
[312108802,1705632645358,-1165.08,0.00033972,3]
[312108803,1705632645368,-500.0,0.00033972,3]
[312108804,1705632645377,-500.0,0.00033972,3]
[312108805,1705632645386,-793.79,0.00033972,3]
[312108806,1705632645395,-8351.56,0.00033972,3]
[312108807,1705632645404,-891.5,0.00033972,3]
[312108808,1705632645414,-3127.07,0.00033972,3]
[312108809,1705632645423,-500.0,0.00033972,3]
[312108810,1705632645432,-1792.88,0.00033972,3]
[312108811,1705632645442,-500.0,0.00033972,3]
[312108812,1705632645451,-637.62449077,0.00033972,3]
[312108813,1705632645460,-5172.22,0.00033972,3]
[312108814,1705632645469,-803.4,0.00033972,3]
[312108815,1705632645478,-1572.78,0.00033972,3]
[312108816,1705632645487,-500.0,0.00033972,3]
[312108817,1705632645496,-1038.95,0.00033972,3]
[312108818,1705632645505,-500.0,0.00033972,3]
[312108819,1705632645515,-500.0,0.00033972,3]
[312108820,1705632645525,-500.0,0.00033972,3]
[312108821,1705632645536,-500.0,0.00033972,3]
[312108822,1705632645545,-500.0,0.00033972,3]
[312108823,1705632645554,-500.0,0.00033972,3]
[312108824,1705632645563,-500.0,0.00033972,3]
[312108825,1705632645573,-739.85,0.00033972,3]
[312108826,1705632645582,-500.0,0.00033972,3]
[312108827,1705632645591,-2170.0,0.00033972,3]
[312108828,1705632645601,-500.0,0.00033972,3]
[312108829,1705632645611,-754.63,0.00033972,3]
[312108830,1705632645620,-610.76,0.00033972,3]
[312108831,1705632645630,-151.32984646,0.00034056,2]
[312108832,1705632645639,-408.62377365,0.0003418,2]
[312108833,1705632645648,-862.56,0.00034245,3]
[312108834,1705632645658,-500.0,0.00034246,3]
[312108835,1705632645666,-500.0,0.00034246,3]
[312108836,1705632645676,-500.0,0.00034246,3]
[312108837,1705632645685,-546.101931,0.00034246,3]
[312108838,1705632645694,-500.0,0.00034246,3]
[312108839,1705632645703,-500.0,0.00034246,3]
[312108840,1705632645712,-500.0,0.00034246,3]
[312108841,1705632645721,-500.0,0.00034246,3]
[312108842,1705632645730,-390.50952533,0.00034246,3]
[312108843,1705632645739,-660.29,0.00034246,3]
[312108844,1705632645748,-500.0,0.00034246,3]
[312108845,1705632645757,-500.0,0.00034246,3]
[312108846,1705632645766,-500.0,0.00034246,3]
[312108847,1705632645774,-500.0,0.00034246,3]
[312108848,1705632645784,-957.96,0.00034246,3]
[312108849,1705632645793,-500.0,0.00034246,3]
[312108850,1705632645802,-1165.08,0.00034246,3]
[312108851,1705632645811,-500.0,0.00034246,3]
[312108852,1705632645821,-500.0,0.00034246,3]
[312108853,1705632645830,-793.79,0.00034246,3]
[312108854,1705632645840,-891.5,0.00034246,3]
[312108855,1705632645852,-8351.56,0.00034246,3]
[312108856,1705632645861,-3127.07,0.00034246,3]
[312108857,1705632645870,-500.0,0.00034246,3]
[312108858,1705632645878,-1792.88,0.00034246,3]
[312108859,1705632645887,-500.0,0.00034246,3]
[312108860,1705632645896,-5172.22,0.00034246,3]
[312108861,1705632645905,-803.4,0.00034246,3]
[312108862,1705632645914,-1572.78,0.00034246,3]
[312108863,1705632645923,-500.0,0.00034246,3]
[312108864,1705632645932,-1038.95,0.00034246,3]
[312108865,1705632645941,-500.0,0.00034246,3]
[312108866,1705632645951,-500.0,0.00034246,3]
[312108867,1705632645960,-500.0,0.00034246,3]
[312108868,1705632645971,-500.0,0.00034246,3]
[312108869,1705632645981,-500.0,0.00034246,3]
[312108870,1705632645991,-504.07827703,0.00034246,3]
[312108871,1705632646000,-500.0,0.00034246,3]
[312108872,1705632646010,-739.85,0.00034246,3]
[312108873,1705632646022,-500.0,0.00034246,3]
[312108874,1705632646032,-2170.0,0.00034246,3]
[312108875,1705632646041,-2170.0,0.00034246,3]
[312108876,1705632646049,-500.0,0.00034246,3]
[312108877,1705632646058,-754.63,0.00034246,3]
[312108878,1705632646067,-610.76,0.00034246,3]
[312108879,1705632646077,-200.0,0.00034273,15]
[312108880,1705632646086,-681.2,0.00034471,3]
[312108881,1705632646095,-515.16943272,0.00034472,4]
[312108882,1705632646104,-564.76150215,0.00034472,4]
[312108883,1705632646113,-8083.9504318,0.00034472,5]
[312108884,1705632646122,-2954.66649976,0.00034472,5]
[312108885,1705632646131,-5000.0,0.00034506,7]
[312108886,1705632646142,-862.56,0.00034519,3]
[312108887,1705632646152,-500.0,0.0003452,3]
[312108888,1705632646162,-500.0,0.0003452,3]
[312108889,1705632646171,-500.0,0.0003452,3]
[312108890,1705632646182,-500.0,0.0003452,3]
[312108891,1705632646193,-500.0,0.0003452,3]
[312108892,1705632646203,-500.0,0.0003452,3]
[312108893,1705632646212,-660.29,0.0003452,3]
[312108894,1705632646222,-500.0,0.0003452,3]
[312108895,1705632646232,-500.0,0.0003452,3]
[312108896,1705632646241,-500.0,0.0003452,3]
[312108897,1705632646250,-957.96,0.0003452,3]
[312108898,1705632646260,-500.0,0.0003452,3]
[312108899,1705632646269,-1165.08,0.0003452,3]
[312108900,1705632646278,-500.0,0.0003452,3]
[312108901,1705632646288,-500.0,0.0003452,3]
[312108902,1705632646297,-793.79,0.0003452,3]
[312108903,1705632646306,-891.5,0.0003452,3]
[312108904,1705632646315,-8351.56,0.0003452,3]
[312108905,1705632646325,-3127.07,0.0003452,3]
[312108906,1705632646335,-500.0,0.0003452,3]
[312108907,1705632646345,-1792.88,0.0003452,3]
[312108908,1705632646354,-500.0,0.0003452,3]
[312108909,1705632646363,-5172.22,0.0003452,3]
[312108910,1705632646372,-803.4,0.0003452,3]
[312108911,1705632646381,-1572.78,0.0003452,3]
[312108913,1705632646390,-500.0,0.0003452,3]
[312108914,1705632646399,-1038.95,0.0003452,3]
[312108915,1705632646408,-500.0,0.0003452,3]
[312108916,1705632646417,-500.0,0.0003452,3]
[312108917,1705632646425,-485.51076799,0.0003452,3]
[312108918,1705632646435,-500.0,0.0003452,3]
[312108919,1705632646444,-500.0,0.0003452,3]
[312108920,1705632646518,-739.85,0.0003452,3]
[312108921,1705632646531,-500.0,0.0003452,3]
[312108922,1705632646540,-2170.0,0.0003452,3]
[312108923,1705632646549,-2170.0,0.0003452,3]
[312108924,1705632646558,-611.02220201,0.0003452,3]
[312108925,1705632646567,-754.63,0.0003452,3]
[312108926,1705632646577,-610.76,0.0003452,3]
[312108927,1705632646585,-166.0,0.00034521,2]
[312108928,1705632646595,-9931.76735641,0.00034563,5]
[312108929,1705632646606,-151.0,0.00034719,2]
[312108930,1705632646615,-681.2,0.00034791,3]
[312108932,1705632646624,-862.56,0.00034793,3]
[312108934,1705632646633,-500.0,0.00034794,3]
[312108936,1705632646642,-500.0,0.00034794,3]
[312108938,1705632646651,-500.0,0.00034794,3]
[312108940,1705632646660,-500.0,0.00034794,3]
[312108942,1705632646669,-500.0,0.00034794,3]
[312108944,1705632646678,-500.0,0.00034794,3]
[312108946,1705632646687,-660.29,0.00034794,3]
[312108948,1705632646697,-500.0,0.00034794,3]
[312108950,1705632646706,-200.94809308,0.00034794,3]
[312108952,1705632646715,-500.0,0.00034794,3]
[312108954,1705632646724,-957.96,0.00034794,3]
[312108956,1705632646733,-500.0,0.00034794,3]
[312108958,1705632646743,-1165.08,0.00034794,3]
[312108960,1705632646752,-500.0,0.00034794,3]
[312108962,1705632646762,-500.0,0.00034794,3]
[312108964,1705632646773,-793.79,0.00034794,3]
[312108965,1705632646783,-891.5,0.00034794,3]
[312108967,1705632646792,-8351.56,0.00034794,3]
[312108968,1705632646801,-3127.07,0.00034794,3]
[312108969,1705632646811,-1792.88,0.00034794,3]
[312108970,1705632646821,-500.0,0.00034794,3]
[312108971,1705632646830,-5172.22,0.00034794,3]
[312108972,1705632646840,-803.4,0.00034794,3]
[312108973,1705632646850,-1572.78,0.00034794,3]
[312108974,1705632646859,-500.0,0.00034794,3]
[312108975,1705632646868,-1038.95,0.00034794,3]
[312108976,1705632646878,-500.0,0.00034794,3]
[312108977,1705632646887,-500.0,0.00034794,3]
[312108978,1705632646897,-344.51,0.00034794,3]
[312108979,1705632646906,-739.85,0.00034794,3]
[312108980,1705632646916,-500.0,0.00034794,3]
[312108981,1705632646925,-2170.0,0.00034794,3]
[312108982,1705632646934,-2170.0,0.00034794,3]
[312108983,1705632646943,-754.63,0.00034794,3]
[312108984,1705632646953,-610.76,0.00034794,3]
[312108985,1705632646962,-591.76162003,0.00035,2]
[312108986,1705632646971,-2084.57822944,0.00035,4]
[312108987,1705632646980,-11158.91946061,0.00035,4]
[312108988,1705632646990,-3119.50448181,0.00035,18]
[312108989,1705632647008,-154.90705577,0.00035,4]
[312108990,1705632647022,-681.2,0.00035067,3]
[312108991,1705632647031,-862.56,0.00035067,3]
[312108992,1705632647042,-500.0,0.00035068,3]
[312108993,1705632647051,-500.0,0.00035068,3]
[312108994,1705632647060,-500.0,0.00035068,3]
[312108995,1705632647069,-500.0,0.00035068,3]
[312108996,1705632647079,-500.0,0.00035068,3]
[312108997,1705632647088,-226.67704984,0.00035068,3]
[312108998,1705632647098,-660.29,0.00035068,3]
[312108999,1705632647107,-500.0,0.00035068,3]
[312109000,1705632647118,-500.0,0.00035068,3]
[312109001,1705632647129,-957.96,0.00035068,3]
[312109002,1705632647138,-1165.08,0.00035068,3]
[312109003,1705632647147,-500.0,0.00035068,3]
[312109004,1705632647156,-500.0,0.00035068,3]
[312109005,1705632647165,-793.79,0.00035068,3]
[312109006,1705632647175,-891.5,0.00035068,3]
[312109007,1705632647184,-8351.56,0.00035068,3]
[312109008,1705632647193,-3127.07,0.00035068,3]
[312109009,1705632647202,-1792.88,0.00035068,3]
[312109010,1705632647212,-500.0,0.00035068,3]
[312109011,1705632647221,-5172.22,0.00035068,3]
[312109012,1705632647230,-803.4,0.00035068,3]
[312109013,1705632647239,-1572.78,0.00035068,3]
[312109014,1705632647248,-500.0,0.00035068,3]
[312109015,1705632647257,-1038.95,0.00035068,3]
[312109016,1705632647269,-500.0,0.00035068,3]
[312109017,1705632647278,-500.0,0.00035068,3]
[312109018,1705632647287,-739.85,0.00035068,3]
[312109019,1705632647296,-2170.0,0.00035068,3]
[312109020,1705632647306,-2170.0,0.00035068,3]
[312109021,1705632647314,-754.63,0.00035068,3]
[312109022,1705632647324,-610.76,0.00035068,3]
[312109023,1705632647333,-681.2,0.00035341,3]
[312109024,1705632647341,-862.56,0.00035341,3]
[312109025,1705632647350,-500.0,0.00035342,3]
[312109026,1705632647359,-500.0,0.00035342,3]
[312109027,1705632647368,-500.0,0.00035342,3]
[312109028,1705632647377,-500.0,0.00035342,3]
[312109029,1705632647386,-500.0,0.00035342,3]
[312109030,1705632647395,-660.29,0.00035342,3]
[312109031,1705632647405,-500.0,0.00035342,3]
[312109032,1705632647413,-500.0,0.00035342,3]
[312109033,1705632647423,-957.96,0.00035342,3]
[312109034,1705632647432,-1165.08,0.00035342,3]
[312109035,1705632647441,-500.0,0.00035342,3]
[312109036,1705632647450,-500.0,0.00035342,3]
[312109037,1705632647462,-793.79,0.00035342,3]
[312109038,1705632647472,-891.5,0.00035342,3]
[312109039,1705632647480,-8351.56,0.00035342,3]
[312109040,1705632647489,-3127.07,0.00035342,3]
[312109041,1705632647498,-1792.88,0.00035342,3]
[312109042,1705632647507,-500.0,0.00035342,3]
[312109043,1705632647518,-5172.22,0.00035342,3]
[312109044,1705632647531,-803.4,0.00035342,3]
[312109045,1705632647540,-1572.78,0.00035342,3]
[312109046,1705632647549,-500.0,0.00035342,3]
[312109047,1705632647558,-1038.95,0.00035342,3]
[312109048,1705632647568,-500.0,0.00035342,3]
[312109049,1705632647577,-500.0,0.00035342,3]
[312109050,1705632647587,-2170.0,0.00035342,3]
[312109051,1705632647595,-2170.0,0.00035342,3]
[312109052,1705632647606,-739.85,0.00035342,3]
[312109053,1705632647614,-754.63,0.00035342,3]
[312109054,1705632647624,-610.76,0.00035342,3]
[312109055,1705632647633,-862.56,0.00035615,3]
[312109056,1705632647643,-500.0,0.00035615,4]
[312109057,1705632647652,-500.0,0.00035615,4]
[312109058,1705632647661,-473.04677902,0.00035615,4]
[312109059,1705632647670,-500.0,0.00035615,4]
[312109060,1705632647679,-500.0,0.00035615,4]
[312109061,1705632647687,-208.42127261,0.00035615,4]
[312109062,1705632647696,-500.0,0.00035615,4]
[312109063,1705632647705,-500.0,0.00035615,4]
[312109064,1705632647713,-640.46726681,0.00035615,4]
[312109065,1705632647722,-409.68249483,0.00035615,4]
[312109066,1705632647732,-261.31303238,0.00035615,4]
[312109067,1705632647740,-500.0,0.00035615,4]
[312109068,1705632647749,-500.0,0.00035615,4]
[312109069,1705632647758,-500.0,0.00035615,7]
[312109070,1705632647767,-500.0,0.00035615,7]
[312109071,1705632647776,-450.0,0.00035615,7]
[312109072,1705632647785,-349.18217504,0.00035615,7]
[312109073,1705632647794,-585.10004292,0.00035615,7]
[312109074,1705632647802,-500.0,0.00035615,7]
[312109075,1705632647812,-470.14444551,0.00035615,7]
[312109076,1705632647821,-500.0,0.00035615,7]
[312109077,1705632647830,-500.0,0.00035615,7]
[312109078,1705632647839,-500.0,0.00035615,7]
[312109079,1705632647849,-634.77839902,0.00035615,7]
[312109080,1705632647858,-500.0,0.00035615,7]
[312109081,1705632647868,-500.0,0.00035615,7]
[312109082,1705632647878,-500.0,0.00035615,7]
[312109083,1705632647888,-578.31192266,0.00035615,7]
[312109084,1705632647898,-248.15612096,0.00035615,7]
[312109085,1705632647909,-500.0,0.00035615,7]
[312109086,1705632647919,-500.0,0.00035615,7]
[312109087,1705632647928,-500.0,0.00035615,7]
[312109088,1705632647937,-500.0,0.00035615,7]
[312109089,1705632647947,-500.0,0.00035615,7]
[312109090,1705632647956,-500.0,0.00035616,3]
[312109091,1705632647966,-500.0,0.00035616,3]
[312109092,1705632647998,-158.17762665,0.00035616,3]
[312109093,1705632648007,-500.0,0.00035616,3]
[312109094,1705632648018,-500.0,0.00035616,3]
[312109095,1705632648028,-660.29,0.00035616,3]
[312109096,1705632648037,-500.0,0.00035616,3]
[312109097,1705632648047,-500.0,0.00035616,3]
[312109098,1705632648056,-957.96,0.00035616,3]
[312109099,1705632648066,-1165.08,0.00035616,3]
[312109100,1705632648075,-500.0,0.00035616,3]
[312109101,1705632648085,-500.0,0.00035616,3]
[312109102,1705632648094,-793.79,0.00035616,3]
[312109103,1705632648170,-891.5,0.00035616,3]
[312109104,1705632648180,-8351.56,0.00035616,3]
[312109105,1705632648189,-3127.07,0.00035616,3]
[312109106,1705632648199,-1792.88,0.00035616,3]
[312109107,1705632648209,-500.0,0.00035616,3]
[312109108,1705632648219,-5172.22,0.00035616,3]
[312109109,1705632648229,-803.4,0.00035616,3]
[312109110,1705632648238,-1572.78,0.00035616,3]
[312109111,1705632648248,-500.0,0.00035616,3]
[312109112,1705632648257,-1038.95,0.00035616,3]
[312109113,1705632648269,-500.0,0.00035616,3]
[312109114,1705632648279,-500.0,0.00035616,3]
[312109115,1705632648288,-2170.0,0.00035616,3]
[312109116,1705632648297,-2170.0,0.00035616,3]
[312109117,1705632648307,-739.85,0.00035616,3]
[312109118,1705632648316,-754.63,0.00035616,3]
[312109119,1705632648326,-610.76,0.00035616,3]
[312109120,1705632648335,-503.401971,0.00035616,120]
[312109121,1705632648344,-701.18891822,0.00035776,2]
[312109122,1705632648354,-681.2,0.00035889,3]
[312109123,1705632648364,-862.56,0.00035889,3]
[312109124,1705632648373,-500.0,0.0003589,3]
[312109125,1705632648383,-500.0,0.0003589,3]
[312109126,1705632648393,-500.0,0.0003589,3]
[312109127,1705632648402,-500.0,0.0003589,3]
[312109128,1705632648411,-660.29,0.0003589,3]
[312109129,1705632648420,-500.0,0.0003589,3]
[312109130,1705632648429,-500.0,0.0003589,3]
[312109131,1705632648439,-957.96,0.0003589,3]
[312109132,1705632648448,-1165.08,0.0003589,3]
[312109133,1705632648457,-500.0,0.0003589,3]
[312109134,1705632648466,-500.0,0.0003589,3]
[312109135,1705632648475,-793.79,0.0003589,3]
[312109136,1705632648484,-891.5,0.0003589,3]
[312109137,1705632648494,-8351.56,0.0003589,3]
[312109138,1705632648503,-3127.07,0.0003589,3]
[312109139,1705632648512,-1792.88,0.0003589,3]
[312109140,1705632648528,-500.0,0.0003589,3]
[312109141,1705632648538,-5172.22,0.0003589,3]
[312109142,1705632648547,-803.4,0.0003589,3]
[312109143,1705632648558,-1572.78,0.0003589,3]
[312109144,1705632648569,-500.0,0.0003589,3]
[312109145,1705632648579,-1038.95,0.0003589,3]
[312109146,1705632648590,-500.0,0.0003589,3]
[312109147,1705632648600,-396.94620069,0.0003589,3]
[312109148,1705632648611,-2170.0,0.0003589,3]
[312109149,1705632648621,-739.85,0.0003589,3]
[312109150,1705632648630,-754.63,0.0003589,3]
[312109151,1705632648639,-185.48759206,0.00036064,2]
[312109152,1705632648648,-862.56,0.00036163,3]
[312109153,1705632648657,-500.0,0.00036164,3]
[312109154,1705632648666,-500.0,0.00036164,3]
[312109155,1705632648675,-500.0,0.00036164,3]
[312109156,1705632648684,-500.0,0.00036164,3]
[312109157,1705632648694,-660.29,0.00036164,3]
[312109158,1705632648703,-500.0,0.00036164,3]
[312109159,1705632648712,-500.0,0.00036164,3]
[312109160,1705632648721,-957.96,0.00036164,3]
[312109161,1705632648731,-1165.08,0.00036164,3]
[312109162,1705632648740,-500.0,0.00036164,3]
[312109163,1705632648749,-500.0,0.00036164,3]
[312109164,1705632648758,-793.79,0.00036164,3]
[312109165,1705632648768,-891.5,0.00036164,3]
[312109166,1705632648778,-8351.56,0.00036164,3]
[312109167,1705632648787,-3127.07,0.00036164,3]
[312109168,1705632648797,-1792.88,0.00036164,3]
[312109169,1705632648807,-500.0,0.00036164,3]
[312109170,1705632648817,-5172.22,0.00036164,3]
[312109171,1705632648826,-803.4,0.00036164,3]
[312109172,1705632648835,-1572.78,0.00036164,3]
[312109173,1705632648844,-500.0,0.00036164,3]
[312109174,1705632648853,-1038.95,0.00036164,3]
[312109175,1705632648862,-500.0,0.00036164,3]
[312109176,1705632648871,-384.82152982,0.00036164,3]
[312109177,1705632648981,-610.76,0.0003589,3]
[312109178,1705632648991,-1785.17847018,0.00036164,3]
[312109179,1705632649000,-739.85,0.00036164,3]
[312109180,1705632649009,-754.63,0.00036164,3]
[312109181,1705632649020,-105.96785784,0.00036164,3]
[312109182,1705632649032,-363.15,0.00036164,3]
[312109183,1705632649082,-500.0,0.00032876,2]
[312109184,1705632649092,-141.64214216,0.00036164,3]
[312109185,1705632649101,-203.59333454,0.00036272,7]
[312109186,1705632649110,-151.0,0.00036288,4]
[312109187,1705632649119,-681.2,0.00036394,3]
[312109188,1705632649129,-151.11943718,0.00036394,3]
[312109189,1705632649142,-373.83719075,0.00036394,3]
[312109210,1705632862087,268.89985055,0.0001,2]
[312109211,1705632867899,2710.03273659,0.0001,2]
[312109246,1705633544092,-3971.58661394,0.00024999,7]
[312109247,1705633544112,-1154.33230643,0.00025,2]
[312109251,1705633634100,-812.0,0.00025,2]
[312109252,1705633650097,-152.92806292,0.00025,2]
[312109255,1705633747080,-6292.0581187,0.00025,2]
[312109256,1705633747101,-300.0,0.00025,2]
[312109257,1705633747120,-2854.38864282,0.00025,2]
[312109259,1705633750165,-354.33590308,0.00025,2]
[312109260,1705633750185,-248.03705078,0.00025,2]
[312109261,1705633750206,-142.39283349,0.00027499,15]
[312109262,1705633761075,-57.60716651,0.00027499,15]
[312109263,1705633761107,-425.8438186,0.00028995,2]
[312109264,1705633761128,-3971.58661394,0.00029899,7]
[312109265,1705633761147,-265.02619235,0.000299,2]
[312109266,1705633761168,-2203.82,0.0002999,3]
[312109267,1705633761188,-1836.51,0.0002999,3]
[312109268,1705633761209,-1530.43,0.0002999,3]
[312109269,1705633761230,-1275.36,0.0002999,3]
[312109270,1705633761249,-168.54408914,0.0003,30]
[312109272,1705633768102,-171.0,0.00025,2]
[312109273,1705633771104,-32.33576534,0.00025,2]
[312109274,1705633771127,-1062.8,0.0002999,3]
[312109275,1705633771151,-78231.75694921,0.0003,30]
[312109276,1705633772089,-42091.00356512,0.0003,30]
[312109289,1705633833570,-5000.0,0.0003,30]
[312109345,1705633837967,-533.99952897,0.0003,30]
[312109355,1705633838044,-8368.67891338,0.0003,30]
[312109357,1705633838053,-2000.0,0.0003,2]
[312109359,1705633838062,-500.0,0.00030136,2]
[312109361,1705633838071,-383.61450309,0.00030273,2]
[312109362,1705633838080,-154.89181078,0.00032074,7]
[312109365,1705633838089,-202.4792086,0.00032178,2]
[312109366,1705633838099,-921.76169037,0.00032458,2]
[312109367,1705633838107,-170.14791116,0.00032573,2]
[312109368,1705633838116,-185.48759206,0.00032776,2]
[312109369,1705633838125,-512.54,0.00032866,3]
[312109371,1705633838135,-800.24,0.00032866,3]
[312109372,1705633838144,-666.87,0.00032866,3]
[312109373,1705633838153,-5336.10485558,0.00032874,7]
[312109374,1705633838162,-4808.34423242,0.00032875,4]
[312109375,1705633838172,-500.0,0.00032876,2]
[312109376,1705633838181,-201.95902,0.00032876,2]
[312109377,1705633838190,-513.95063349,0.00032876,2]
[312109378,1705633838199,-514.18623116,0.00032876,2]
[312109379,1705633838210,-500.0,0.00032876,2]
[312109380,1705633838221,-500.0,0.00032876,2]
[312109382,1705633838230,-500.0,0.00032876,2]
[312109383,1705633838239,-500.0,0.00032876,2]
[312109385,1705633838252,-504.43578108,0.00032876,2]
[312109386,1705633838261,-500.0,0.00032876,2]
[312109388,1705633838270,-500.5733652,0.00032876,2]
[312109390,1705633838280,-500.0,0.00032876,2]
[312109392,1705633838289,-505.33617015,0.00032876,2]
[312109393,1705633838298,-500.0,0.00032876,2]
[312109394,1705633838307,-529.68642611,0.00032876,2]
[312109395,1705633838316,-500.0,0.00032876,2]
[312109396,1705633838326,-583.42340203,0.00032876,2]
[312109397,1705633838335,-500.0,0.00032876,2]
[312109398,1705633838344,-502.44985973,0.00032876,2]
[312109399,1705633838353,-500.0,0.00032876,2]
[312109400,1705633838362,-346.22800659,0.00032876,2]
[312109401,1705633838371,-625.81408229,0.00032876,2]
[312109402,1705633838380,-500.0,0.00032876,2]
[312109403,1705633838390,-176.58600345,0.00032876,2]
[312109404,1705633838399,-500.0,0.00032876,2]
[312109405,1705633838408,-501.21709397,0.00032876,2]
[312109406,1705633838417,-500.0,0.00032876,2]
[312109407,1705633838428,-500.0,0.00032876,2]
[312109408,1705633838437,-500.0,0.00032876,2]
[312109409,1705633838447,-500.0,0.00032876,2]
[312109410,1705633838457,-372.85643791,0.00032876,2]
[312109411,1705633838474,-127.14356209,0.00032876,2]
[312109412,1705633838571,-330.77387985,0.00032876,2]
[312109413,1705633838581,-500.0,0.00032876,2]
[312109414,1705633838592,-503.86239034,0.00032876,2]
[312109415,1705633838602,-502.19921982,0.00032876,2]
[312109416,1705633838611,-500.0,0.00032876,2]
[312109417,1705633838621,-502.0314944,0.00032876,2]
[312109418,1705633838631,-500.56555605,0.00032876,2]
[312109419,1705633838641,-405.15774271,0.00032876,2]
[312109420,1705633838650,-500.0,0.00032876,2]
[312109421,1705633838659,-501.16948915,0.00032876,2]
[312109422,1705633838669,-501.57091893,0.00032876,2]
[312109423,1705633838679,-500.38761768,0.00032876,2]
[312109424,1705633838688,-500.0,0.00032876,2]
[312109425,1705633838698,-500.0,0.00032876,2]
[312109426,1705633838707,-505.83850922,0.00032876,2]
[312109427,1705633838716,-503.11256309,0.00032876,2]
[312109428,1705633838725,-500.33320496,0.00032876,2]
[312109429,1705633838734,-500.0,0.00032876,2]
[312109430,1705633838742,-500.0,0.00032876,2]
[312109431,1705633838755,-500.0,0.00032876,2]
[312109432,1705633838765,-500.0,0.00032876,2]
[312109433,1705633838774,-501.41665242,0.00032876,2]
[312109434,1705633838783,-500.0,0.00032876,2]
[312109435,1705633838792,-500.0,0.00032876,2]
[312109436,1705633838802,-500.0,0.00032876,2]
[312109437,1705633838811,-501.55394383,0.00032876,2]